bitfinex/quotes_ETHUSD_20251212
["timestamp","ask_amount","ask_price","bid_price","bid_amount"]
[1765527265016,3.96713373,3251.4,3251.3,0.4818]
[1765527265546,3.96713373,3251.4,3251.3,0.9428]
[1765527267347,3.96713373,3251.4,3251.3,0.4818]
[1765527267849,3.96713373,3251.4,3251.1,0.6482]
[1765527268046,7.04276346,3251.4,3250.4,0.486]
[1765527268251,7.04276346,3251.4,3250.5,1.0775204]
[1765527269433,7.04276346,3251.4,3250.6,3.07633891]
[1765527269633,7.04276346,3251.4,3250.6,0.461]
[1765527270519,0.405504,3251.3,3250.6,0.461]
[1765527270755,0.405504,3251.3,3250.3,3.53761654]
[1765527271050,0.405504,3251.3,3250.4,0.81476165]
[1765527271623,0.405504,3251.1,3250.4,0.81476165]
[1765527271844,0.405504,3250.9,3250.3,0.461]
[1765527273716,3.07616586,3250.8,3250.3,0.461]
[1765527275052,6.15233172,3250.8,3250.3,0.461]
[1765527275426,3.07616586,3250.8,3250.3,0.461]
[1765527276449,6.15233172,3250.8,3250.3,0.461]
[1765527279953,3.07616586,3250.8,3250.3,0.461]
[1765527281631,6.15233172,3250.8,3250.3,0.461]
[1765527282950,3.07616586,3250.8,3250.3,0.461]
[1765527283737,3.07616586,3250.8,3250.7,0.4777]
[1765527283738,3.48166986,3250.8,3250.7,0.4777]
[1765527284139,3.96666986,3250.8,3250.7,0.9491]
[1765527284740,3.96666986,3250.8,3250.7,0.4777]
[1765527285754,3.48166986,3250.8,3250.7,0.4777]
[1765527285954,3.96666986,3250.8,3250.7,0.4777]
[1765527286161,3.96666986,3250.8,3250.5,0.4714]
[1765527286857,3.48166986,3250.8,3250.5,0.4714]
[1765527287060,3.96666986,3250.8,3250.5,0.4714]
[1765527290560,7.04283572,3250.8,3250.1,0.1846]
[1765527290863,7.04283572,3250.8,3250.2,0.4714]
[1765527292435,7.74711929,3250.8,3250.2,0.4714]
[1765527294263,0.405504,3250.7,3250.1,0.1846]
[1765527294931,0.405504,3250.7,3250.1,0.656]
[1765527295564,0.405504,3250.7,3250.2,0.4714]
[1765527296057,3.07635513,3250.6,3250.2,0.4714]
[1765527296660,3.07635513,3250.6,3250.5,0.4777]
[1765527297060,3.07635513,3250.6,3250.5,0.9491]
[1765527297838,0.58047529,3250.9,3250.5,0.9491]
[1765527298056,0.890504,3250.8,3250.7,0.4777]
[1765527299457,0.890504,3250.8,3249.6,0.4714]
[1765527299458,1.65280299,3250.8,3249.6,0.4714]
[1765527299783,1.65280299,3250.8,3249.8,6.15223802]
[1765527299984,3.56126049,3250.7,3250.2,5.67974225]
[1765527300357,0.485,3250.7,3250.6,0.4777]
[1765527300885,0.485,3250.7,3250.6,0.9491]
[1765527301258,0.002,3252.3,3250.6,0.9491]
[1765527301483,0.485,3252.0,3251.2,5.67974225]
[1765527301659,0.92359271,3251.9,3251.1,0.1915]
[1765527301856,0.002,3252.3,3251.1,0.6629]
[1765527302057,0.486,3252.2,3251.1,0.6629]
[1765527302256,0.486,3252.2,3251.2,0.4714]
[1765527302692,0.70912241,3252.1,3251.0,0.4714]
[1765527302890,0.405504,3252.0,3251.0,0.4714]
[1765527303884,9.22537593,3251.9,3250.9,0.4714]
[1765527304088,0.405504,3251.7,3250.9,0.4714]
[1765527305993,0.98597929,3251.5,3250.6,5.67974225]
[1765527306194,0.98597929,3251.5,3250.8,0.4714]
[1765527306195,0.485,3251.4,3250.8,0.4714]
[1765527308088,3.07569279,3251.3,3250.8,0.4714]
[1765527308464,6.15138558,3251.3,3250.8,0.4714]
[1765527308994,3.07569279,3251.3,3250.8,0.4714]
[1765527314098,3.07569279,3251.3,3250.3,3.63784783]
[1765527314099,0.4363018,3251.2,3250.3,0.1915]
[1765527314398,0.4363018,3251.2,3250.4,0.4739]
[1765527314399,0.65876874,3251.1,3250.4,0.4739]
[1765527314580,0.485,3251.0,3250.4,0.4739]
[1765527315099,6.15214248,3250.9,3250.4,0.4739]
[1765527315482,0.405504,3250.8,3250.4,0.4739]
[1765527317384,3.07626049,3250.7,3250.4,0.4739]
[1765527318098,3.48176449,3250.7,3250.6,0.4567]
[1765527318272,3.07620392,3250.8,3250.6,0.4567]
[1765527318470,3.07620392,3250.8,3250.7,0.4508]
[1765527318702,3.07620392,3250.8,3250.7,0.4567]
[1765527318905,3.07620392,3250.8,3250.5,0.4508]
[1765527319604,6.15214248,3250.9,3250.5,0.4508]
[1765527320578,6.15214248,3250.9,3250.3,0.6423]
[1765527321303,3.07607124,3250.9,3250.3,0.6423]
[1765527321508,3.07607124,3250.9,3250.0,0.4508]
[1765527321509,0.405504,3250.8,3250.0,0.4508]
[1765527321811,0.98597929,3250.8,3250.0,0.4508]
[1765527322003,2.05589859,3250.8,3250.0,0.4508]
[1765527322197,2.05589859,3250.8,3250.1,0.1835]
[1765527322392,2.05589859,3250.8,3250.1,0.6343]
[1765527324113,0.405504,3250.6,3250.1,0.6343]
[1765527324311,0.485,3250.5,3250.1,0.6343]
[1765527324606,0.485,3250.5,3250.2,0.4508]
[1765527324805,0.485,3250.5,3250.4,0.4567]
[1765527324986,0.485,3250.5,3250.4,0.9075]
[1765527325401,0.485,3250.6,3250.4,0.9075]
[1765527325983,0.485,3250.6,3250.5,0.4567]
[1765527328709,0.485,3250.6,3250.5,0.9075]
[1765527329817,3.56135513,3250.6,3250.5,0.9075]
[1765527330617,3.56135513,3250.6,3250.5,0.4567]
[1765527331022,0.485,3250.6,3250.5,0.4567]
[1765527331316,3.56135513,3250.6,3250.5,0.4567]
[1765527331519,3.56135513,3250.6,3250.2,5.67999199]
[1765527331686,3.56135513,3250.6,3250.3,0.4508]
[1765527331891,0.485,3250.6,3250.5,0.4567]
[1765527332599,0.485,3250.6,3250.3,0.4508]
[1765527333415,3.56135513,3250.6,3250.3,0.4508]
[1765527334123,0.405504,3251.0,3250.5,0.4567]
[1765527334309,0.485,3251.6,3250.9,6.13669199]
[1765527334620,0.485,3251.5,3251.0,0.4508]
[1765527335309,0.485,3251.5,3251.1,0.1835]
[1765527335508,0.485,3251.5,3251.4,0.4567]
[1765527335700,3.56050361,3251.5,3251.4,0.4567]
[1765527336832,3.56050361,3251.5,3251.2,0.4508]
[1765527337001,6.63600722,3251.5,3251.2,0.4508]
[1765527338233,3.56050361,3251.5,3251.2,0.4508]
[1765527338941,3.56050361,3251.5,3251.4,0.4567]
[1765527339120,3.07542305,3251.6,3251.4,0.4567]
[1765527339324,0.485,3251.6,3251.4,0.9075]
[1765527339508,0.485,3251.6,3251.5,0.4567]
[1765527340800,3.56042657,3251.6,3251.4,0.4508]
[1765527341002,0.485,3251.6,3251.4,0.4508]
[1765527341500,3.56044998,3251.6,3251.4,0.4508]
[1765527342630,3.56044998,3251.6,3251.2,5.67999199]
[1765527342802,0.485,3251.5,3251.2,6.13079199]
[1765527343632,0.485,3251.5,3251.1,0.1835]
[1765527343802,0.485,3251.5,3251.1,0.6421]
[1765527344198,0.485,3251.5,3251.2,0.4586]
[1765527344911,3.0755982,3251.4,3251.2,0.4586]
[1765527345226,3.73920302,3251.4,3250.9,5.67999199]
[1765527345423,3.0755982,3251.4,3250.9,5.67999199]
[1765527345637,3.0755982,3251.4,3251.0,0.4586]
[1765527346231,0.485,3251.5,3251.0,0.4586]
[1765527346232,3.56053973,3251.5,3251.0,0.4586]
[1765527347499,6.63607946,3251.5,3251.0,0.4586]
[1765527350225,6.63607946,3251.5,3250.9,6.13859199]
[1765527350541,7.29968741,3251.5,3250.9,6.13859199]
[1765527351406,4.22414768,3251.5,3250.9,6.13859199]
[1765527351729,3.56053973,3251.5,3251.0,0.4586]
[1765527352228,3.56053973,3251.5,3251.1,0.1834]
[1765527352725,3.56053973,3251.5,3251.2,0.4586]
[1765527354705,3.07553973,3251.5,3251.2,0.4586]
[1765527354906,0.485,3251.4,3251.2,0.4586]
[1765527355534,0.485,3251.3,3251.2,0.4586]
[1765527355906,0.485,3251.3,3251.2,0.9128]
[1765527359916,3.07522484,3251.8,3251.2,1.59014841]
[1765527360239,0.485,3251.7,3251.4,5.67728414]
[1765527360739,0.485,3251.7,3251.6,0.4542]
[1765527361220,0.485,3251.7,3251.6,0.9128]
[1765527362244,0.485,3251.7,3251.6,0.4542]
[1765527362624,0.485,3251.7,3251.6,0.9128]
[1765527363444,6.1497509,3252.2,3251.6,0.4542]
[1765527363742,1.06547529,3252.1,3251.7,0.9128]
[1765527364167,1.06547529,3252.1,3251.8,0.4586]
[1765527364656,3.55994301,3252.1,3251.8,0.4586]
[1765527365729,0.405504,3252.0,3251.1,0.1834]
[1765527365928,0.98597929,3252.0,3250.8,3.07610811]
[1765527366252,1.01677709,3252.0,3250.4,5.6757709]
[1765527366414,1.01677709,3252.0,3250.6,0.4586]
[1765527366615,0.405504,3251.5,3250.6,0.4586]
[1765527366828,0.405504,3251.3,3250.6,0.4586]
[1765527369134,6.1515748,3251.2,3250.6,0.4586]
[1765527369819,0.98597929,3251.1,3250.2,0.4586]
[1765527370020,0.405504,3250.9,3250.1,0.1835]
[1765527370252,0.405504,3250.9,3250.0,5.6757709]
[1765527370832,0.405504,3250.9,3249.9,0.4586]
[1765527371231,0.405504,3250.7,3249.9,0.4586]
[1765527371550,0.485,3250.6,3249.9,0.4586]
[1765527371952,0.405504,3250.5,3249.9,0.4586]
[1765527372125,0.405504,3250.5,3249.6,0.001]
[1765527372642,0.405504,3250.5,3249.6,0.4596]
[1765527373021,0.405504,3250.5,3249.6,0.001]
[1765527373230,0.98597929,3250.3,3249.6,0.001]
[1765527373434,0.405504,3250.1,3249.6,0.001]
[1765527374581,0.58047529,3250.3,3249.7,0.4987]
[1765527374865,0.486,3250.2,3249.7,0.4987]
[1765527376665,0.405504,3249.9,3249.6,0.001]
[1765527376847,0.405504,3249.7,3249.6,0.001]
[1765527377765,0.405504,3249.7,3249.6,0.4724]
[1765527378063,0.486,3249.8,3249.6,0.9711]
[1765527379459,3.56318436,3249.8,3249.6,0.9711]
[1765527379657,3.56318436,3249.8,3249.7,0.9701]
[1765527380342,3.56318436,3249.8,3249.7,0.4714]
[1765527382052,3.07690073,3250.1,3249.7,0.9269]
[1765527382367,3.07690073,3250.1,3250.0,0.4656]
[1765527382865,6.15380146,3250.1,3249.6,5.6767709]
[1765527383073,6.15380146,3250.1,3249.6,6.1322709]
[1765527383971,6.15380146,3250.1,3249.6,5.6767709]
[1765527384275,6.55897146,3250.2,3249.7,0.4555]
[1765527384876,3.48223773,3250.2,3250.1,0.4656]
[1765527385670,3.48223773,3250.2,3250.1,1.1192]
[1765527385876,3.96823773,3250.2,3250.1,1.1192]
[1765527387572,3.48223773,3250.2,3250.1,1.1192]
[1765527387771,3.96823773,3250.2,3250.1,1.1192]
[1765527388175,0.486,3250.2,3250.1,1.1192]
[1765527388362,3.07663206,3250.4,3250.1,1.1192]
[1765527388676,3.56263206,3250.4,3250.3,0.4656]
[1765527389061,0.486,3250.4,3250.3,0.9211]
[1765527389667,3.56254442,3250.4,3250.3,0.9211]
[1765527390077,0.486,3250.4,3250.3,0.9211]
[1765527391742,3.56254442,3250.4,3250.3,0.9211]
[1765527392575,3.65677534,3250.7,3250.3,0.9211]
[1765527392774,6.15081804,3251.6,3250.6,0.4656]
[1765527392973,0.405504,3251.4,3250.7,0.4656]
[1765527393479,0.405504,3251.4,3250.8,0.4555]
[1765527394668,0.98597929,3251.2,3250.3,4.12629833]
[1765527394869,0.486,3251.1,3250.7,0.4555]
[1765527395248,0.891504,3251.1,3251.0,0.4656]
[1765527396171,0.891504,3251.1,3251.0,0.9211]
[1765527396473,0.891504,3251.1,3250.6,0.4555]
[1765527396776,3.07597662,3251.0,3250.6,0.4555]
[1765527397574,3.07597662,3251.0,3250.9,0.4656]
[1765527399769,0.891504,3251.1,3250.9,0.4656]
[1765527399770,3.96739255,3251.1,3250.9,0.4656]
[1765527399977,3.96739255,3251.1,3250.9,0.9211]
[1765527400174,3.96739255,3251.1,3251.0,0.4656]
[1765527401378,0.891504,3251.1,3251.0,0.4656]
[1765527402053,0.891504,3251.1,3251.0,0.9211]
[1765527402691,1.06647529,3251.2,3251.0,0.9211]
[1765527402980,1.06647529,3251.2,3251.0,0.9218]
[1765527403185,3.075882,3251.1,3250.7,0.4562]
[1765527403365,6.151764,3251.1,3250.3,4.58249763]
[1765527403558,6.151764,3251.1,3250.4,0.4562]
[1765527403952,3.075882,3251.1,3250.4,0.4562]
[1765527405589,6.151764,3251.1,3250.4,0.4562]
[1765527407282,6.87358793,3251.1,3250.4,0.4562]
[1765527408363,6.87358793,3251.1,3250.1,3.27489408]
[1765527408364,0.405504,3251.0,3250.1,3.27489408]
[1765527408558,0.405504,3251.0,3250.3,0.4562]
[1765527409072,0.405504,3251.0,3250.3,3.53282775]
[1765527409267,0.405504,3251.0,3250.4,8.75667963]
[1765527409470,3.075882,3251.1,3250.4,9.21287963]
[1765527409656,3.075882,3251.1,3250.5,0.4562]
[1765527411580,6.87357987,3251.1,3250.3,0.4562]
[1765527411781,0.405504,3251.0,3250.3,0.4562]
[1765527413589,3.07607124,3250.9,3250.3,3.53282574]
[1765527414085,3.07607124,3250.9,3250.4,0.4562]
[1765527414885,0.486,3250.8,3250.1,0.1981]
[1765527415085,0.486,3250.8,3249.8,3.07708785]
[1765527415086,1.77083994,3250.8,3249.8,0.4562]
[1765527415294,0.405504,3250.7,3249.8,0.82592563]
[1765527415586,6.15271026,3250.6,3249.9,0.4562]
[1765527416480,3.07635513,3250.6,3249.9,3.53321403]
[1765527416686,3.07635513,3250.6,3250.0,0.4562]
[1765527417088,6.15271026,3250.6,3250.0,0.4562]
[1765527421472,3.07635513,3250.6,3250.0,0.4562]
[1765527421871,3.07635513,3250.6,3250.2,5.67995884]
[1765527422379,3.07635513,3250.6,3250.3,0.4562]
[1765527423346,6.15271026,3250.6,3250.3,0.4562]
[1765527423501,0.405504,3250.7,3249.6,3.74448707]
[1765527423502,3.07654442,3250.4,3250.0,0.4562]
[1765527423671,6.15308884,3250.4,3249.9,5.68088654]
[1765527423871,6.15308884,3250.4,3250.0,0.4562]
[1765527424602,3.07654442,3250.4,3250.0,0.4562]
[1765527425102,3.07635513,3250.6,3250.0,0.4562]
[1765527425303,3.07635513,3250.6,3250.3,0.4667]
[1765527426906,6.15271026,3250.6,3250.3,0.4667]
[1765527427210,6.92756815,3250.6,3250.2,5.68088654]
[1765527429012,6.92756815,3250.6,3249.9,6.13708654]
[1765527429512,0.405504,3250.5,3249.9,6.13708654]
[1765527429680,0.405504,3250.5,3249.9,5.68088654]
[1765527429880,0.405504,3250.5,3250.0,0.4562]
[1765527430912,3.56254442,3250.4,3250.0,0.4562]
[1765527431703,3.56254442,3250.4,3250.3,0.4667]
[1765527432811,3.07654442,3250.4,3250.3,0.4667]
[1765527433415,3.56135513,3250.6,3250.3,0.9342]
[1765527433612,3.56135513,3250.6,3250.5,0.4551]
[1765527434117,3.56135513,3250.6,3250.4,0.4675]
[1765527435086,3.56135513,3250.6,3250.2,5.68088654]
[1765527435288,6.63777744,3250.6,3250.2,6.14838654]
[1765527437820,3.56135513,3250.6,3250.2,5.68088654]
[1765527438020,3.56135513,3250.6,3250.3,0.4675]
[1765527438218,3.56135513,3250.6,3250.5,0.4551]
[1765527440524,0.485,3250.6,3250.5,0.4551]
[1765527440815,3.56135513,3250.6,3250.5,6.13598654]
[1765527441933,6.63771026,3250.6,3250.3,0.4675]
[1765527442087,6.63771026,3250.6,3250.2,6.14838654]
[1765527442403,6.63771026,3250.6,3250.2,5.68088654]
[1765527442587,6.63771026,3250.6,3250.3,0.4675]
[1765527444220,6.63771026,3250.6,3250.0,5.68088654]
[1765527447127,6.63771026,3250.6,3250.0,6.16178654]
[1765527448730,6.63771026,3250.6,3250.1,0.4809]
[1765527448939,3.56135513,3250.6,3250.3,5.68088654]
[1765527449427,3.56135513,3250.6,3250.4,0.4809]
[1765527450330,0.485,3250.5,3250.4,0.4809]
[1765527451230,3.56144977,3250.5,3250.4,0.4809]
[1765527451529,0.485,3250.5,3250.4,0.9567]
[1765527451729,3.56144977,3250.5,3250.4,0.9567]
[1765527452133,3.56144977,3250.5,3250.4,0.4758]
[1765527453355,3.56144977,3250.5,3250.4,0.9567]
[1765527454431,3.56144977,3250.5,3250.4,0.4758]
[1765527455042,3.56144977,3250.5,3250.4,0.9567]
[1765527455639,3.56144977,3250.5,3250.4,0.4758]
[1765527456140,3.56144977,3250.5,3250.4,0.9567]
[1765527458360,0.405504,3250.7,3250.4,0.9567]
[1765527458526,1.06547529,3250.9,3250.6,6.15550054]
[1765527458725,1.06547529,3250.9,3250.7,0.4758]
[1765527458942,1.06547529,3250.9,3250.7,0.9567]
[1765527459568,1.06547529,3250.9,3250.8,0.4758]
[1765527460425,4.14154653,3250.9,3250.8,0.4758]
[1765527460625,4.14154653,3250.9,3250.6,5.67970054]
[1765527460626,7.21761777,3250.9,3250.6,5.67970054]
[1765527462657,7.21761777,3250.9,3250.1,4.00047122]
[1765527462830,7.21761777,3250.9,3250.4,5.67970054]
[1765527463342,0.0307978,3250.8,3250.2,5.67970054]
[1765527463657,7.21761777,3250.9,3250.2,5.67970054]
[1765527466031,7.21761777,3250.9,3250.2,6.16110054]
[1765527473155,7.21761777,3250.9,3250.2,5.67970054]
[1765527473869,7.21761777,3250.9,3250.3,0.4814]
[1765527474950,7.21761777,3250.9,3250.5,5.67970054]
[1765527476279,7.21761777,3250.9,3250.5,6.16110054]
[1765527476669,7.21761777,3250.9,3250.5,5.67970054]
[1765527476872,7.93937955,3250.9,3250.3,0.4814]
[1765527479881,7.93937955,3250.9,3250.5,5.67970054]
[1765527481874,0.405504,3250.8,3250.2,5.67970054]
[1765527482044,0.405504,3250.8,3250.2,6.16110054]
[1765527482250,0.405504,3250.8,3250.3,0.4814]
[1765527482553,1.3323758,3250.8,3250.3,0.4814]
[1765527482767,1.3323758,3250.8,3250.5,5.67970054]
[1765527483072,1.3323758,3250.8,3250.4,5.67970054]
[1765527483879,3.07626049,3250.7,3250.2,0.4814]
[1765527484069,0.405504,3250.6,3250.2,0.4814]
[1765527484250,0.485,3250.5,3250.2,0.4814]
[1765527484862,0.485,3250.5,3250.4,0.4555]
[1765527485381,0.485,3250.5,3250.4,0.9369]
[1765527485552,3.07626049,3250.7,3250.4,0.9369]
[1765527485879,0.58047529,3250.7,3250.6,0.4555]
[1765527486178,4.14173578,3250.7,3250.6,0.4555]
[1765527486380,3.56126049,3250.7,3250.6,0.9369]
[1765527487575,3.07619988,3250.8,3250.6,0.9369]
[1765527487782,3.56119988,3250.8,3250.6,0.9369]
[1765527487963,3.56119988,3250.8,3250.7,0.9369]
[1765527489790,3.56119988,3250.8,3250.7,0.4555]
[1765527491874,6.151764,3251.1,3250.7,0.4555]
[1765527492080,1.06547529,3251.0,3250.7,0.9369]
[1765527492573,1.06547529,3251.0,3250.8,0.4814]
[1765527492896,1.06547529,3251.0,3250.9,0.4555]
[1765527493975,4.14145191,3251.0,3250.9,0.4555]
[1765527494493,0.92370077,3251.3,3250.9,0.9414]
[1765527494672,0.58047529,3251.3,3251.0,5.67875224]
[1765527494873,1.06547529,3251.3,3251.0,0.4859]
[1765527495264,1.06547529,3251.3,3251.2,0.4734]
[1765527495657,1.06547529,3251.3,3251.2,0.9593]
[1765527496058,4.14116808,3251.3,3251.2,0.9593]
[1765527496661,1.40161582,3251.5,3251.2,0.9593]
[1765527496865,5.05759556,3251.5,3251.4,6.14485224]
[1765527497099,5.54259556,3251.5,3251.4,6.14485224]
[1765527497269,5.54259556,3251.5,3251.4,6.62805224]
[1765527498000,5.54259556,3251.5,3251.4,0.9493]
[1765527498196,0.405504,3251.4,3250.9,0.6716]
[1765527498595,8.61810001,3251.5,3251.0,0.4832]
[1765527500172,0.405504,3251.4,3250.9,0.1884]
[1765527500401,0.405504,3251.4,3251.0,0.4832]
[1765527502981,3.07569279,3251.3,3251.0,0.4832]
[1765527503480,3.07569279,3251.3,3251.2,0.4661]
[1765527506000,3.07568383,3251.4,3251.2,0.4661]
[1765527506591,6.15137039,3251.4,3251.0,0.4832]
[1765527506800,6.15137039,3251.4,3250.0,5.67875224]
[1765527506801,0.98597929,3251.3,3250.4,0.4832]
[1765527507104,1.94054044,3251.3,3250.2,0.6716]
[1765527507400,1.94054044,3251.3,3250.3,6.16195224]
[1765527507774,1.01677709,3251.3,3250.3,6.16195224]
[1765527507976,0.405504,3251.1,3250.3,5.67875224]
[1765527508188,0.405504,3250.9,3250.4,0.4832]
[1765527509203,0.405504,3250.9,3250.0,5.67875224]
[1765527509500,1.32931001,3250.9,3250.0,6.16195224]
[1765527509676,1.32931001,3250.9,3250.1,0.4832]
[1765527510210,0.405504,3250.7,3250.3,5.67875224]
[1765527510395,0.485,3250.6,3250.3,5.67875224]
[1765527510590,0.485,3250.6,3250.4,0.4832]
[1765527511001,0.485,3250.6,3250.5,0.4661]
[1765527512208,0.485,3250.6,3250.5,0.9493]
[1765527512602,3.07627115,3250.7,3250.5,0.9493]
[1765527512803,0.485,3250.6,3250.5,0.9493]
[1765527513437,3.07627115,3250.7,3250.5,0.9493]
[1765527513612,0.485,3250.6,3250.5,0.9493]
[1765527515911,0.485,3250.6,3250.5,0.4661]
[1765527516711,0.485,3250.6,3250.3,6.16195224]
[1765527517611,0.485,3250.6,3250.5,0.4661]
[1765527518212,3.56135513,3250.6,3250.5,0.4661]
[1765527518714,3.56135513,3250.6,3250.4,0.4832]
[1765527519393,3.56135513,3250.6,3250.3,5.67875224]
[1765527520108,3.07635513,3250.6,3250.3,5.67875224]
[1765527520313,0.485,3250.5,3250.3,5.67875224]
[1765527520615,0.485,3250.5,3250.3,6.16195224]
[1765527521513,3.5614543,3250.5,3250.3,6.16195224]
[1765527521815,3.5614543,3250.5,3250.3,0.4832]
[1765527522204,3.5614543,3250.5,3250.1,6.16283295]
[1765527522402,3.5614543,3250.5,3250.2,0.4832]
[1765527522791,0.485,3250.5,3250.4,0.4661]
[1765527523731,0.485,3250.5,3250.4,0.9476]
[1765527524615,3.56136532,3250.6,3250.4,0.9476]
[1765527525723,3.56136532,3250.6,3250.4,0.4661]
[1765527525928,3.56136532,3250.6,3250.1,6.16113295]
[1765527526100,3.56136532,3250.6,3250.2,0.4815]
[1765527526622,3.56136532,3250.6,3250.5,0.4566]
[1765527527831,0.485,3250.6,3250.5,0.4566]
[1765527528323,3.56135513,3250.6,3250.5,0.4566]
[1765527528530,3.56135513,3250.6,3250.5,0.9381]
[1765527528930,3.56135513,3250.6,3250.5,0.4566]
[1765527529402,3.56135513,3250.6,3250.3,0.4815]
[1765527534127,3.56135513,3250.6,3250.1,5.67963295]
[1765527534304,3.56135513,3250.6,3250.1,6.16113295]
[1765527534701,6.63771026,3250.6,3250.1,5.67963295]
[1765527534927,6.63771026,3250.6,3250.1,6.16113295]
[1765527535925,0.405504,3250.5,3249.6,0.1812]
[1765527536119,0.405504,3250.5,3249.6,0.6627]
[1765527536933,0.405504,3250.5,3249.7,5.67963295]
[1765527537129,0.405504,3250.5,3249.7,6.16113295]
[1765527537830,6.15308884,3250.4,3249.7,6.16113295]
[1765527538025,0.405504,3250.3,3249.7,6.16113295]
[1765527538336,0.485,3250.2,3249.7,6.16113295]
[1765527539507,0.485,3250.2,3249.7,5.67963295]
[1765527539904,3.0768284,3250.1,3249.7,5.67963295]
[1765527540138,3.0768284,3250.1,3249.7,6.16113295]
[1765527541405,6.1536568,3250.1,3249.6,0.001]
[1765527541609,0.66386568,3250.0,3249.6,0.001]
[1765527541833,6.1536568,3250.1,3249.6,0.001]
[1765527543738,0.485,3250.0,3249.7,0.4815]
[1765527543928,3.56201512,3250.0,3249.9,5.68130757]
[1765527544128,3.56201512,3250.0,3249.9,6.13790757]
[1765527544342,3.56201512,3250.0,3249.9,6.61940757]
[1765527547539,3.56201512,3250.0,3249.9,6.13790757]
[1765527547744,3.56201512,3250.0,3249.9,5.68130757]
[1765527548042,3.56201512,3250.0,3249.7,5.68130757]
[1765527549124,3.56201512,3250.0,3249.7,6.16280757]
[1765527549548,3.56201512,3250.0,3249.7,5.68130757]
[1765527549715,3.56201512,3250.0,3249.8,0.4815]
[1765527550318,3.56201512,3250.0,3249.7,5.68130757]
[1765527550610,3.56201512,3250.0,3249.7,6.16280757]
[1765527551013,3.56201512,3250.0,3249.9,0.4566]
[1765527551220,3.07674411,3250.2,3249.9,0.4566]
[1765527551221,3.56175508,3250.2,3249.9,0.4566]
[1765527551444,4.54773437,3250.2,3250.1,6.33340757]
[1765527551813,4.54773437,3250.2,3250.1,6.81490757]
[1765527552045,4.54773437,3250.2,3250.1,5.68130757]
[1765527552939,7.62448945,3250.2,3249.9,5.68130757]
[1765527553144,4.54773437,3250.2,3249.9,5.68130757]
[1765527553345,4.54773437,3250.2,3250.1,0.4858]
[1765527553746,4.54773437,3250.2,3250.0,0.4592]
[1765527554246,4.54773437,3250.2,3250.0,6.14013589]
[1765527554741,4.54773437,3250.2,3250.0,5.68093589]
[1765527556918,0.405504,3250.1,3249.6,0.001]
[1765527557146,0.405504,3249.9,3249.6,0.001]
[1765527557346,0.405504,3249.9,3249.6,0.461]
[1765527558547,0.405504,3249.9,3249.7,5.68093589]
[1765527559132,0.405504,3249.9,3249.7,6.14093589]
[1765527560461,3.07701988,3249.9,3249.7,6.14093589]
[1765527561463,3.07685276,3250.1,3249.8,0.4604]
[1765527561762,0.405504,3250.0,3249.8,0.9204]
[1765527562970,0.405504,3250.0,3249.9,0.9204]
[1765527563681,0.890504,3250.0,3249.9,0.9204]
[1765527564076,3.96742707,3250.0,3249.9,0.9204]
[1765527564579,3.96742707,3250.0,3249.9,0.4604]
[1765527564779,3.96742707,3250.0,3249.7,6.14093589]
[1765527566179,3.96742707,3250.0,3249.7,5.68093589]
[1765527566778,3.96742707,3250.0,3249.7,6.14093589]
[1765527567781,3.48242707,3250.0,3249.9,0.4604]
[1765527567960,3.96742707,3250.0,3249.9,0.4604]
[1765527571386,0.485,3250.0,3249.9,0.4604]
[1765527571578,0.405504,3250.8,3249.9,0.9204]
[1765527571895,0.405504,3250.5,3250.3,5.68093589]
[1765527572293,0.405504,3250.5,3250.3,6.14093589]
[1765527572765,0.405504,3250.5,3250.3,5.68093589]
[1765527574690,3.65701971,3250.4,3250.3,5.68093589]
[1765527576995,0.58047529,3250.4,3250.3,6.60133589]
[1765527577175,0.485,3250.6,3250.3,7.27956948]
[1765527577493,0.485,3250.6,3250.5,6.14133589]
[1765527578061,0.485,3250.6,3250.5,6.60133589]
[1765527578576,0.485,3250.9,3250.5,6.60133589]
[1765527578776,0.58047529,3250.7,3250.6,0.46]
[1765527579176,0.58047529,3250.7,3250.6,0.9204]
[1765527580506,0.58047529,3250.7,3250.2,0.181]
[1765527580709,3.07635513,3250.6,3250.4,5.68093589]
[1765527581185,3.07635513,3250.6,3250.4,6.14093589]
[1765527581680,3.07635513,3250.6,3250.5,0.4604]
[1765527582205,3.07627178,3250.7,3250.5,0.9204]
[1765527582370,3.07627178,3250.7,3250.6,0.4604]
[1765527585975,3.07627178,3250.7,3250.4,5.68093589]
[1765527585976,6.15254356,3250.7,3250.4,5.68093589]
[1765527586297,6.15254356,3250.7,3250.4,6.15473589]
[1765527586605,6.15254356,3250.7,3250.5,5.67918629]
[1765527587396,6.87434545,3250.7,3250.2,5.67918629]
[1765527587573,6.87434545,3250.7,3250.5,5.67918629]
[1765527587574,6.15254356,3250.7,3250.5,5.67918629]
[1765527587979,6.15254356,3250.7,3250.5,6.15298629]
[1765527588405,6.15254356,3250.7,3250.5,5.67918629]
[1765527591204,6.15254356,3250.7,3250.3,0.4738]
[1765527593323,6.15254356,3250.7,3250.2,5.67918629]
[1765527595123,6.15254356,3250.7,3250.2,6.15298629]
[1765527595625,6.15254356,3250.7,3250.3,0.4738]
[1765527596424,6.15254356,3250.7,3250.5,5.67918629]
[1765527597698,4.06225107,3250.7,3250.6,0.9664]
[1765527601104,4.06225107,3250.7,3250.6,0.4926]
[1765527601311,7.13852285,3250.7,3250.4,6.15298629]
[1765527601517,7.13852285,3250.7,3250.4,5.67918629]
[1765527601718,7.13852285,3250.7,3249.8,0.1999]
[1765527601719,0.98597929,3250.6,3250.0,5.67918629]
[1765527602123,0.98597929,3250.6,3249.8,0.1999]
[1765527602330,2.16295559,3250.6,3249.8,5.87908629]
[1765527602531,2.16295559,3250.6,3249.9,0.4738]
[1765527603138,3.08688394,3250.6,3249.8,5.87908629]
[1765527604015,6.15289954,3250.5,3249.8,5.87908629]
[1765527604217,0.890504,3250.4,3249.8,5.87908629]
[1765527604431,2.75110261,3250.4,3249.8,5.67918629]
[1765527605424,2.75110261,3250.4,3249.8,6.15298629]